[Event "3rd Memorial Warakomska 2019"]
[Site "Suwalki"]
[Date "2019.08.06"]
[Round "2.9"]
[White "Zakhartsov, Vladimir"]
[Black "Licznerski, Lukasz"]
[Result "1/2-1/2"]
[ECO "A48"]
[WhiteElo "2493"]
[BlackElo "2328"]
[Annotator "ChessBase"]
[PlyCount "93"]
[EventDate "2019.08.05"]
[EventType "swiss"]
[EventCountry "POL"]
[SourceTitle "playchess.com"]
[Source "ChessBase"]
[SourceQuality "1"]
[TimeControl "40/5400+30:1800+30"]

1. d4 {[%emt 0:00:00]} Nf6 {[%emt 0:00:35]} 2. Nf3 {[%emt 0:00:00]} g6 {[%emt 0:00:26]} 3. c4 {[%emt 0:00:52]} Bg7 {[%emt 0:00:06]} 4. g3 {[%emt 0:00:05]} d5 {[%emt 0:00:30]} 5. cxd5 {[%emt 0:00:08]} Nxd5 {[%emt 0:00:07]} 6. Bg2 {[%emt 0:00:26]} Nb6 {[%emt 0:00:36]} 7. O-O {[%emt 0:00:43]} Nc6 {[%emt 0:00:20]} 8. e3 {[%emt 0:00:08]} e5 {[%emt 0:00:52]} 9. Nc3 {[%emt 0:05:25]} exd4 {[%emt 0:08:49]} 10. exd4 {[%emt 0:00:08]} O-O {[%emt 0:00:43]} 11. Bg5 {[%emt 0:00:21]} Qd7 {[%emt 0:01:20]} 12. Qc1 {[%emt 0:09:31]} Nxd4 {[%emt 0:04:30]} 13. Nxd4 {[%emt 0:04:30]} Qxd4 {[%emt 0:01:18]} 14. Rd1 {[%emt 0:00:22]} Qb4 {[%emt 0:10:40]} 15. Re1 {[%emt 0:05:23]} Be6 {[%emt 0:06:32]} 16. Bxb7 {[%emt 0:11:19]} Rab8 {[%emt 0:01:28]} 17. Bg2 {[%emt 0:00:16]} Nc4 {[%emt 0:33:49]} 18. Nd5 {[%emt 0:01:39]} Bxd5 {[%emt 0:00:29]} 19. Bxd5 {[%emt 0:00:07]} Nxb2 {[%emt 0:02:09]} 20. Be7 {[%emt 0:01:59]} Qd4 {[%emt 0:02:17]} 21. Bxf8 {[%emt 0:09:56]} Nd3 {[%emt 0:00:56]} 22. Qe3 {[%emt 0:02:50]} Qxe3 {[%emt 0:10:13]} 23. Rxe3 {[%emt 0:00:28]} Bxa1 {[%emt 0:00:04]} 24. Bh6 {[%emt 0:03:56]} Ne5 {[%emt 0:00:01]} 25. Bf4 {[%emt 0:02:25]} Rb5 {[%emt 0:01:17]} 26. Bb3 {[%emt 0:00:17]} Kg7 {[%emt 0:03:06]} 27. h4 {[%emt 0:01:28]} f6 {[%emt 0:00:51]} 28. Kg2 {[%emt 0:01:11]} Bd4 {[%emt 0:01:43]} 29. Re4 {[%emt 0:00:25]} c5 {[%emt 0:00:09]} 30. g4 {[%emt 0:01:28]} h6 {[%emt 0:04:55]} 31. g5 {[%emt 0:02:10]} hxg5 {[%emt 0:00:01]} 32. hxg5 {[%emt 0:00:04]} Rb7 {[%emt 0:00:17]} 33. Bg3 {[%emt 0:01:38]} Nf7 {[%emt 0:04:20]} 34. gxf6+ Bxf6 {[%emt 0:00:03]} 35. Re6 {[%emt 0:04:41]} Nh6 {[%emt 0:01:14]} 36. Ra6 {[%emt 0:04:52]} Nf5 {[%emt 0:00:36]} 37. Bd5 {[%emt 0:00:09]} Rd7 {[%emt 0:00:21]} 38. Be6 {[%emt 0:00:20]} Rb7 {[%emt 0:00:36]} 39. Bc8 {[%emt 0:01:48]} Rf7 {[%emt 0:00:38]} 40. Be6 {[%emt 0:00:00]} Rb7 {[%emt 0:00:00]} 41. Bd5 {[%emt 0:07:05]} Rd7 {[%emt 0:05:05]} 42. Bc6 {[%emt 0:01:01]} Re7 {[%emt 0:03:19]} 43. Bb8 {[%emt 0:01:07]} c4 {[%emt 0:04:40]} 44. Rxa7 {[%emt 0:00:49]} Rxa7 45. Bxa7 {[%emt 0:00:02]} c3 {[%emt 0:02:29]} 46. Be4 {[%emt 0:00:34]} Nd4 {[%emt 0:00:27]} 47. Bxd4 {[%emt 0:01:57]} 1/2-1/2

[Event "3rd Memorial Warakomska 2019"]
[Site "Suwalki"]
[Date "2019.08.06"]
[Round "2.10"]
[White "Ashwath, R.."]
[Black "Janik, Igor"]
[Result "1/2-1/2"]
[ECO "E21"]
[WhiteElo "2365"]
[BlackElo "2495"]
[Annotator "ChessBase"]
[PlyCount "115"]
[EventDate "2019.08.05"]
[EventType "swiss"]
[EventCountry "POL"]
[SourceTitle "playchess.com"]
[Source "ChessBase"]
[SourceQuality "1"]
[TimeControl "40/5400+30:1800+30"]

1. d4 {[%emt 0:00:09]} Nf6 {[%emt 0:00:00]} 2. c4 {[%emt 0:00:30]} e6 {[%emt 0:00:00]} 3. Nc3 {[%emt 0:00:04]} Bb4 {[%emt 0:00:00]} 4. Nf3 {[%emt 0:00:17]} O-O {[%emt 0:00:10]} 5. Bg5 {[%emt 0:00:24]} c5 {[%emt 0:00:31]} 6. Rc1 {[%emt 0:01:11]} h6 7. Bh4 {[%emt 0:00:30]} cxd4 {[%emt 0:00:34]} 8. Nxd4 {[%emt 0:00:37]} d5 {[%emt 0:00:13]} 9. cxd5 g5 {[%emt 0:02:33]} 10. Bg3 {[%emt 0:00:38]} Qxd5 {[%emt 0:00:10]} 11. a3 {[%emt 0:00:44]} Bxc3+ {[%emt 0:03:58]} 12. bxc3 Bd7 13. f3 {[%emt 0:09:10]} e5 {[%emt 0:05:11]} 14. e4 {[%emt 0:13:23]} Qc5 {[%emt 0:00:56]} 15. Nb3 {[%emt 0:17:22]} Qe7 {[%emt 0:00:59]} 16. h4 {[%emt 0:01:14]} Ba4 {[%emt 0:03:00]} 17. hxg5 {[%emt 0:02:59]} Rd8 {[%emt 0:03:07]} 18. Qe2 {[%emt 0:12:14]} hxg5 {[%emt 0:01:45]} 19. Qe3 {[%emt 0:00:19]} Nfd7 {[%emt 0:00:54]} 20. Bc4 {[%emt 0:06:21]} Kg7 {[%emt 0:14:59]} 21. Bxf7 {[%emt 0:05:26]} Nc6 {[%emt 0:00:06]} 22. Bd5 {[%emt 0:06:16]} Bxb3 {[%emt 0:00:46]} 23. Bxb3 {[%emt 0:00:35]} Kg6 {[%emt 0:00:42]} 24. Kf2 {[%emt 0:05:19]} Nf6 {[%emt 0:01:47]} 25. Bd5 {[%emt 0:02:27]} Qxa3 {[%emt 0:05:26]} 26. Be6 {[%emt 0:01:41]} Qb2+ {[%emt 0:02:30]} 27. Kf1 {[%emt 0:06:23]} Rh8 {[%emt 0:02:47]} 28. Bf5+ {[%emt 0:01:29]} Kf7 {[%emt 0:00:08]} 29. Rxh8 {[%emt 0:00:14]} Rxh8 {[%emt 0:00:02]} 30. Kg1 {[%emt 0:00:26]} Rd8 {[%emt 0:04:16]} 31. Kh2 {[%emt 0:01:22]} Qd2 {[%emt 0:07:27]} 32. Qxd2 {[%emt 0:01:16]} Rxd2 {[%emt 0:00:03]} 33. Rb1 {[%emt 0:00:02]} b6 {[%emt 0:00:28]} 34. Rb5 {[%emt 0:01:12]} Nh5 {[%emt 0:01:15]} 35. Rd5 {[%emt 0:01:57]} Nxg3 {[%emt 0:02:00]} 36. Kxg3 {[%emt 0:00:04]} Rxd5 {[%emt 0:00:09]} 37. exd5 {[%emt 0:00:02]} Nd8 {[%emt 0:03:07]} 38. Kg4 {[%emt 0:01:30]} Kf6 {[%emt 0:00:02]} 39. d6 {[%emt 0:01:49]} a5 {[%emt 0:04:03]} 40. Bc2 {[%emt 0:00:00]} Ne6 {[%emt 0:00:00]} 41. d7 {[%emt 0:07:23]} Ke7 {[%emt 0:05:07]} 42. Kf5 {[%emt 0:00:30]} Kxd7 {[%emt 0:03:17]} 43. Kxe5 {[%emt 0:00:33]} Nf4 44. g3 {[%emt 0:17:16]} Ne2 {[%emt 0:00:40]} 45. f4 {[%emt 0:00:12]} gxf4 {[%emt 0:00:44]} 46. gxf4 {[%emt 0:00:07]} Nxc3 {[%emt 0:00:12]} 47. f5 {[%emt 0:00:41]} b5 {[%emt 0:01:32]} 48. f6 {[%emt 0:05:09]} b4 {[%emt 0:00:40]} 49. Bf5+ {[%emt 0:00:03]} Ke8 {[%emt 0:00:14]} 50. Bg6+ {[%emt 0:00:04]} Kf8 {[%emt 0:00:12]} 51. Kd4 {[%emt 0:00:48]} a4 {[%emt 0:01:46]} 52. Bc2 {[%emt 0:00:48]} a3 {[%emt 0:01:40]} 53. Bb3 {[%emt 0:00:10]} a2 {[%emt 0:01:02]} 54. Bxa2 {[%emt 0:00:04]} Nxa2 {[%emt 0:00:04]} 55. Kc4 {[%emt 0:00:07]} Kf7 {[%emt 0:00:12]} 56. Kb3 {[%emt 0:00:03]} Kxf6 {[%emt 0:00:03]} 57. Kxa2 {[%emt 0:00:03]} b3+ {[%emt 0:00:06]} 58. Kxb3 {[%emt 0:00:03]} 1/2-1/2

[Event "3rd Memorial Warakomska 2019"]
[Site "Suwalki"]
[Date "2019.08.06"]
[Round "2.11"]
[White "Karthik Venkataraman"]
[Black "Kulon, Klaudia"]
[Result "1/2-1/2"]
[ECO "C97"]
[WhiteElo "2480"]
[BlackElo "2331"]
[Annotator "ChessBase"]
[PlyCount "151"]
[EventDate "2019.08.05"]
[EventType "swiss"]
[EventCountry "POL"]
[SourceTitle "playchess.com"]
[Source "ChessBase"]
[SourceQuality "1"]
[TimeControl "40/5400+30:1800+30"]

1. e4 {[%emt 0:01:54]} e5 {[%emt 0:00:00]} 2. Nf3 {[%emt 0:00:12]} Nc6 {[%emt 0:00:00]} 3. Bb5 {[%emt 0:00:05]} a6 {[%emt 0:00:00]} 4. Ba4 {[%emt 0:00:05]} Nf6 {[%emt 0:00:00]} 5. O-O {[%emt 0:00:06]} Be7 {[%emt 0:00:00]} 6. Re1 {[%emt 0:00:08]} b5 {[%emt 0:00:00]} 7. Bb3 {[%emt 0:00:05]} d6 {[%emt 0:00:04]} 8. c3 {[%emt 0:00:05]} O-O {[%emt 0:00:08]} 9. h3 {[%emt 0:00:04]} Na5 {[%emt 0:00:08]} 10. Bc2 {[%emt 0:00:06]} c5 {[%emt 0:00:04]} 11. d4 {[%emt 0:00:05]} Qc7 {[%emt 0:00:09]} 12. d5 {[%emt 0:00:06]} Bd7 {[%emt 0:00:39]} 13. Nbd2 {[%emt 0:00:31]} c4 {[%emt 0:01:33]} 14. Nf1 {[%emt 0:05:42]} Nb7 {[%emt 0:00:53]} 15. N3h2 {[%emt 0:00:24]} g6 {[%emt 0:12:46]} 16. Bh6 {[%emt 0:02:36]} Rfe8 {[%emt 0:00:06]} 17. Ng3 {[%emt 0:00:42]} Kh8 {[%emt 0:12:26]} 18. Qd2 {[%emt 0:03:37]} Ng8 {[%emt 0:02:22]} 19. Be3 {[%emt 0:00:28]} Bf6 {[%emt 0:04:05]} 20. Rf1 {[%emt 0:03:10]} Bg7 {[%emt 0:02:30]} 21. f4 {[%emt 0:03:05]} exf4 {[%emt 0:01:49]} 22. Bxf4 {[%emt 0:00:25]} Nd8 {[%emt 0:06:38]} 23. Nf3 {[%emt 0:04:02]} f6 {[%emt 0:03:07]} 24. Nd4 {[%emt 0:04:20]} Nf7 {[%emt 0:00:12]} 25. Be3 {[%emt 0:00:47]} Ne5 {[%emt 0:01:21]} 26. Nge2 {[%emt 0:00:27]} Nd3 {[%emt 0:09:11]} 27. Bxd3 {[%emt 0:01:05]} cxd3 {[%emt 0:00:02]} 28. Ng3 {[%emt 0:00:10]} h5 {[%emt 0:00:17]} 29. Qxd3 {[%emt 0:00:49]} Qc4 {[%emt 0:01:31]} 30. Qc2 {[%emt 0:10:22]} f5 {[%emt 0:04:00]} 31. Nf3 {[%emt 0:03:16]} fxe4 {[%emt 0:02:54]} 32. Nh4 {[%emt 0:00:14]} Ne7 {[%emt 0:07:02]} 33. Bg5 {[%emt 0:09:51]} Kh7 {[%emt 0:01:10]} 34. Qxe4 {[%emt 0:09:14]} Qxd5 {[%emt 0:06:32]} 35. Bf6 {[%emt 0:05:01]} Qxe4 {[%emt 0:06:21]} 36. Nxe4 {[%emt 0:00:06]} Nf5 {[%emt 0:01:12]} 37. Ng5+ {[%emt 0:02:30]} Kg8 {[%emt 0:00:12]} 38. Bxg7 {[%emt 0:01:24]} Kxg7 {[%emt 0:00:25]} 39. Nxf5+ {[%emt 0:01:23]} Bxf5 {[%emt 0:00:06]} 40. Rad1 {[%emt 0:00:00]} Re2 {[%emt 0:00:00]} 41. Rf2 {[%emt 0:00:57]} Rxf2 {[%emt 0:04:34]} 42. Kxf2 {[%emt 0:00:03]} Rd8 {[%emt 0:00:06]} 43. Rd4 {[%emt 0:03:50]} Kf6 {[%emt 0:03:40]} 44. Nf3 {[%emt 0:00:13]} Ke7 {[%emt 0:02:30]} 45. Ke3 {[%emt 0:00:46]} Be6 {[%emt 0:05:15]} 46. a3 {[%emt 0:01:06]} Rf8 {[%emt 0:00:34]} 47. Re4 {[%emt 0:01:19]} Kd7 {[%emt 0:01:12]} 48. Rf4 {[%emt 0:01:52]} Re8 {[%emt 0:02:37]} 49. Kf2 {[%emt 0:00:27]} Ke7 {[%emt 0:01:21]} 50. Re4 Kd7 {[%emt 0:01:44]} 51. Kg3 {[%emt 0:01:50]} Bf5 {[%emt 0:05:50]} 52. Rxe8 {[%emt 0:01:12]} Kxe8 {[%emt 0:00:01]} 53. Kf4 {[%emt 0:00:49]} Kf7 {[%emt 0:00:10]} 54. Nd4 {[%emt 0:00:58]} Bc8 {[%emt 0:01:02]} 55. Nc2 {[%emt 0:09:50]} Kf6 {[%emt 0:01:18]} 56. h4 {[%emt 0:00:05]} Bb7 {[%emt 0:01:08]} 57. g3 {[%emt 0:00:05]} Ba8 {[%emt 0:01:02]} 58. Ne3 {[%emt 0:00:06]} Bc6 {[%emt 0:01:02]} 59. b4 {[%emt 0:02:53]} Bb7 {[%emt 0:02:12]} 60. c4 {[%emt 0:02:32]} bxc4 {[%emt 0:00:06]} 61. Nxc4 {[%emt 0:00:06]} Ke6 {[%emt 0:00:25]} 62. Na5 {[%emt 0:02:36]} Bg2 {[%emt 0:00:25]} 63. Nc4 {[%emt 0:02:08]} Bc6 {[%emt 0:01:32]} 64. Ne3 {[%emt 0:01:41]} Ba4 {[%emt 0:04:22]} 65. Ke4 {[%emt 0:01:29]} Bc6+ {[%emt 0:00:31]} 66. Kd4 {[%emt 0:00:03]} Ba4 {[%emt 0:00:22]} 67. Nd5 {[%emt 0:02:07]} Kf5 {[%emt 0:02:01]} 68. Ne3+ {[%emt 0:05:11]} Ke6 {[%emt 0:00:39]} 69. Nc4 {[%emt 0:00:08]} Bc6 {[%emt 0:01:09]} 70. Na5 {[%emt 0:02:00]} Ba4 {[%emt 0:01:30]} 71. Nc4 {[%emt 0:01:59]} Bc6 {[%emt 0:00:03]} 72. Nd2 {[%emt 0:00:52]} Kf5 {[%emt 0:00:49]} 73. Ke3 {[%emt 0:00:04]} Kg4 {[%emt 0:02:11]} 74. Kf2 {[%emt 0:00:04]} Kf5 {[%emt 0:00:10]} 75. Ke3 {[%emt 0:02:09]} Kg4 {[%emt 0:00:12]} 76. Kf2 {[%emt 0:03:04]} 1/2-1/2

[Event "3rd Memorial Warakomska 2019"]
[Site "Suwalki"]
[Date "2019.08.06"]
[Round "2.12"]
[White "Walter, Szymon"]
[Black "Galperin, Platon"]
[Result "0-1"]
[ECO "B23"]
[WhiteElo "2314"]
[BlackElo "2445"]
[Annotator "NA"]
[PlyCount "82"]
[EventDate "2019.08.05"]
[EventType "swiss"]
[EventCountry "POL"]
[SourceTitle "playchess.com"]
[Source "ChessBase"]
[SourceQuality "1"]
[TimeControl "40/5400+30:1800+30"]

1. e4 {[%emt 0:00:00]} c5 {[%emt 0:00:00]} 2. Nc3 {[%emt 0:00:23]} Nc6 {[%emt 0:00:00]} 3. f4 {[%emt 0:00:51]} g6 {[%emt 0:00:00]} 4. Nf3 {[%emt 0:01:05]} Bg7 {[%emt 0:00:00]} 5. Bb5 {[%emt 0:00:41]} Nd4 {[%emt 0:00:00]} 6. O-O {[%emt 0:00:51]} a6 {[%emt 0:00:00]} 7. Bc4 {[%emt 0:01:02]} e6 {[%emt 0:00:00]} 8. d3 {[%emt 0:02:01]} Ne7 {[%emt 0:02:42]} 9. Nxd4 {[%emt 0:00:45]} Bxd4+ {[%emt 0:02:14]} 10. Kh1 {[%emt 0:00:07]} b5 {[%emt 0:12:17]} 11. Bb3 {[%emt 0:00:09]} Bb7 {[%emt 0:04:20]} 12. Qe1 {[%emt 0:00:36]} Qc7 {[%emt 0:11:53]} 13. Bd2 {[%emt 0:12:03]} f5 {[%emt 0:17:54]} 14. Nd1 {[%emt 0:40:26]} c4 {[%emt 0:09:51]} 15. dxc4 {[%emt 0:02:11]} bxc4 {[%emt 0:05:34]} 16. Bc3 {[%emt 0:00:23]} Bxc3 {[%emt 0:02:08]} 17. Qxc3 {[%emt 0:00:07]} O-O {[%emt 0:00:15]} 18. Ne3 {[%emt 0:07:30]} fxe4 {[%emt 0:15:23]} 19. Bxc4 {[%emt 0:03:09]} Rac8 {[%emt 0:00:24]} 20. Qd2 {[%emt 0:09:06]} d5 {[%emt 0:02:23]} 21. Bb3 {[%emt 0:00:06]} Rxf4 {[%emt 0:04:16]} 22. Rxf4 {[%emt 0:00:52]} Qxf4 {[%emt 0:00:03]} 23. Rf1 {[%emt 0:00:11]} Qd6 {[%emt 0:04:34]} 24. Rf6 {[%emt 0:05:32]} Kg7 {[%emt 0:04:44]} 25. Qf2 {[%emt 0:03:05]} Nf5 {[%emt 0:01:03]} 26. Nxf5+ {[%emt 0:00:11]} gxf5 {[%emt 0:00:03]} 27. Qh4 {[%emt 0:00:11]} Qe5 28. Qh6+ {[%emt 0:08:35]} Kg8 {[%emt 0:00:59]} 29. Rxe6 {[%emt 0:00:13]} Qxb2 {[%emt 0:00:02]} 30. h4 {[%emt 0:00:31]} Kf7 {[%emt 0:01:02]} 31. h5 {[%emt 0:02:00]} Qa1+ {[%emt 0:00:54]} 32. Kh2 {[%emt 0:00:05]} Rh8 {[%emt 0:00:31]} 33. Rb6 {[%emt 0:00:56]} Qe5+ {[%emt 0:00:11]} 34. g3 {[%emt 0:00:21]} Bc8 {[%emt 0:00:16]} 35. Kg2 {[%emt 0:00:44]} Rg8 {[%emt 0:00:26]} 36. Qe3 {[%emt 0:00:30]} f4 {[%emt 0:00:53]} 37. Bxd5+ {[%emt 0:00:13]} Qxd5 {[%emt 0:00:24]} 38. Qxf4+ {[%emt 0:00:06]} Qf5 {[%emt 0:00:38]} 39. Qxf5+ {[%emt 0:01:11]} Bxf5 {[%emt 0:00:03]} 40. Rxa6 {[%emt 0:00:00]} Rc8 {[%emt 0:00:00]} 41. Kf2 {[%emt 0:00:21]} Rc3 {[%emt 0:04:17]} 0-1

[Event "3rd Memorial Warakomska 2019"]
[Site "Suwalki"]
[Date "2019.08.06"]
[Round "2.13"]
[White "Caspi, Israel"]
[Black "Gurbanov, Andrei"]
[Result "1-0"]
[ECO "C45"]
[WhiteElo "2458"]
[BlackElo "2305"]
[Annotator "ChessBase"]
[PlyCount "35"]
[EventDate "2019.08.05"]
[EventType "swiss"]
[EventCountry "POL"]
[SourceTitle "playchess.com"]
[Source "ChessBase"]
[SourceQuality "1"]
[TimeControl "40/5400+30:1800+30"]

1. e4 {[%emt 0:00:00]} e5 {[%emt 0:00:00]} 2. Nf3 {[%emt 0:00:00]} Nc6 {[%emt 0:00:00]} 3. d4 {[%emt 0:00:00]} exd4 {[%emt 0:00:00]} 4. Nxd4 {[%emt 0:00:00]} Bc5 {[%emt 0:00:00]} 5. Nb3 {[%emt 0:00:09]} Bb6 {[%emt 0:00:16]} 6. Qe2 {[%emt 0:00:44]} a5 {[%emt 0:01:43]} 7. a4 {[%emt 0:01:55]} Nf6 {[%emt 0:06:23]} 8. Nc3 {[%emt 0:01:55]} O-O {[%emt 0:05:06]} 9. Bg5 {[%emt 0:00:54]} Nd4 {[%emt 0:00:48]} 10. Qd2 {[%emt 0:00:56]} Nxb3 {[%emt 0:00:09]} 11. cxb3 {[%emt 0:00:04]} c6 {[%emt 0:05:06]} 12. O-O-O {[%emt 0:04:06]} Re8 {[%emt 0:00:21]} 13. Bc4 {[%emt 0:10:27]} h6 {[%emt 0:23:20]} 14. Bh4 {[%emt 0:04:03]} g5 {[%emt 0:11:13]} 15. Bg3 {[%emt 0:04:23]} Nxe4 {[%emt 0:14:20]} 16. Nxe4 {[%emt 0:00:53]} Rxe4 {[%emt 0:00:07]} 17. Qd6 {[%emt 0:01:58]} Qe7 {[%emt 0:11:50]} 18. Qg6+ {[%emt 0:00:37]} 1-0

[Event "3rd Memorial Warakomska 2019"]
[Site "Suwalki"]
[Date "2019.08.06"]
[Round "2.14"]
[White "Barski, Radoslaw"]
[Black "Fiedorek, Michal"]
[Result "1-0"]
[ECO "B31"]
[WhiteElo "2468"]
[BlackElo "2241"]
[Annotator "ChessBase"]
[PlyCount "61"]
[EventDate "2019.08.05"]
[EventType "swiss"]
[EventCountry "POL"]
[SourceTitle "playchess.com"]
[Source "ChessBase"]
[SourceQuality "1"]
[TimeControl "40/5400+30:1800+30"]

1. e4 {[%emt 0:00:00]} c5 {[%emt 0:00:00]} 2. Nf3 {[%emt 0:00:00]} Nc6 {[%emt 0:00:00]} 3. Bb5 {[%emt 0:00:00]} g6 {[%emt 0:00:00]} 4. Bxc6 {[%emt 0:00:16]} dxc6 {[%emt 0:00:02]} 5. d3 {[%emt 0:00:33]} Bg7 {[%emt 0:00:48]} 6. h3 {[%emt 0:02:04]} Nf6 {[%emt 0:00:48]} 7. Nc3 {[%emt 0:00:36]} Nd7 {[%emt 0:00:33]} 8. O-O {[%emt 0:03:41]} e5 {[%emt 0:00:50]} 9. Be3 {[%emt 0:03:08]} b6 {[%emt 0:00:55]} 10. a3 {[%emt 0:03:47]} Nf8 {[%emt 0:02:54]} 11. Qc1 {[%emt 0:03:04]} h6 {[%emt 0:02:08]} 12. b4 {[%emt 0:00:19]} Ne6 {[%emt 0:02:48]} 13. bxc5 {[%emt 0:01:20]} f5 {[%emt 0:00:36]} 14. cxb6 {[%emt 0:17:22]} axb6 {[%emt 0:19:35]} 15. Rb1 {[%emt 0:02:27]} b5 {[%emt 0:03:19]} 16. exf5 {[%emt 0:00:18]} gxf5 {[%emt 0:00:11]} 17. Bd2 {[%emt 0:03:20]} Qd6 {[%emt 0:24:26]} 18. Re1 {[%emt 0:01:52]} Kf7 {[%emt 0:03:49]} 19. Rb4 {[%emt 0:08:00]} Bd7 {[%emt 0:07:54]} 20. Ne2 {[%emt 0:17:02]} c5 {[%emt 0:06:41]} 21. Rb1 {[%emt 0:00:09]} Nd4 {[%emt 0:05:32]} 22. Nexd4 {[%emt 0:01:35]} cxd4 {[%emt 0:00:12]} 23. Bb4 {[%emt 0:00:35]} Qd5 {[%emt 0:01:45]} 24. c4 {[%emt 0:07:16]} dxc3 {[%emt 0:02:16]} 25. Bxc3 {[%emt 0:00:54]} Rac8 {[%emt 0:10:40]} 26. Qb2 {[%emt 0:00:13]} Rxc3 {[%emt 0:02:30]} 27. Qxc3 {[%emt 0:00:04]} e4 {[%emt 0:00:36]} 28. dxe4 {[%emt 0:00:04]} fxe4 {[%emt 0:00:14]} 29. Qe3 {[%emt 0:00:32]} Bf5 {[%emt 0:01:24]} 30. Rbd1 {[%emt 0:01:52]} Qe6 {[%emt 0:00:44]} 31. Qf4 {[%emt 0:04:10]} 1-0

[Event "3rd Memorial Warakomska 2019"]
[Site "Suwalki"]
[Date "2019.08.06"]
[Round "2.15"]
[White "Kubicka, Anna"]
[Black "Cukrowski, Filip"]
[Result "1/2-1/2"]
[ECO "B40"]
[WhiteElo "2202"]
[BlackElo "2421"]
[Annotator "NA"]
[PlyCount "39"]
[EventDate "2019.08.05"]
[EventType "swiss"]
[EventCountry "POL"]
[SourceTitle "playchess.com"]
[Source "ChessBase"]
[SourceQuality "1"]
[TimeControl "40/5400+30:1800+30"]

1. e4 {[%emt 0:00:00]} c5 {[%emt 0:10:28]} 2. Nf3 {[%emt 0:00:00]} e6 {[%emt 0:05:58]} 3. d4 {[%emt 0:00:05]} cxd4 {[%emt 0:00:06]} 4. Nxd4 {[%emt 0:00:06]} Nf6 {[%emt 0:00:58]} 5. Nc3 {[%emt 0:00:06]} Nc6 {[%emt 0:00:10]} 6. Ndb5 {[%emt 0:00:45]} Bb4 {[%emt 0:10:10]} 7. a3 {[%emt 0:00:09]} Bxc3+ {[%emt 0:00:05]} 8. Nxc3 {[%emt 0:00:05]} d5 {[%emt 0:00:06]} 9. exd5 {[%emt 0:00:10]} exd5 {[%emt 0:00:05]} 10. Bd3 {[%emt 0:00:13]} O-O {[%emt 0:07:02]} 11. O-O {[%emt 0:00:05]} h6 {[%emt 0:04:17]} 12. h3 {[%emt 0:00:24]} Be6 {[%emt 0:12:14]} 13. Bf4 {[%emt 0:03:15]} d4 {[%emt 0:00:56]} 14. Ne4 {[%emt 0:08:05]} Nxe4 {[%emt 0:06:32]} 15. Bxe4 {[%emt 0:00:07]} Bd5 {[%emt 0:00:17]} 16. Bxd5 {[%emt 0:08:19]} Qxd5 {[%emt 0:00:06]} 17. Qd3 {[%emt 0:00:26]} Rfe8 {[%emt 0:00:54]} 18. Rfe1 {[%emt 0:05:07]} Re6 {[%emt 0:04:48]} 19. Rxe6 {[%emt 0:04:32]} Qxe6 {[%emt 0:00:04]} 20. Bd2 {[%emt 0:06:00]} 1/2-1/2

[Event "3rd Memorial Warakomska 2019"]
[Site "Suwalki"]
[Date "2019.08.06"]
[Round "2.16"]
[White "Dhulipalla Bala Chandra Prasad"]
[Black "Zakrzewski, Marek"]
[Result "1/2-1/2"]
[ECO "B40"]
[WhiteElo "2419"]
[BlackElo "2311"]
[Annotator "NA"]
[PlyCount "69"]
[EventDate "2019.08.05"]
[EventType "swiss"]
[EventCountry "POL"]
[SourceTitle "playchess.com"]
[Source "ChessBase"]
[SourceQuality "1"]
[TimeControl "40/5400+30:1800+30"]

1. Nf3 {[%emt 0:00:00]} c5 {[%emt 0:00:00]} 2. e4 {[%emt 0:00:19]} e6 {[%emt 0:00:00]} 3. g3 {[%emt 0:00:51]} Nc6 {[%emt 0:00:18]} 4. Bg2 {[%emt 0:00:06]} Nf6 {[%emt 0:00:16]} 5. Qe2 {[%emt 0:01:02]} e5 {[%emt 0:09:13]} 6. O-O Be7 7. c3 {[%emt 0:01:04]} O-O {[%emt 0:01:22]} 8. Na3 {[%emt 0:00:59]} Re8 {[%emt 0:01:58]} 9. d3 {[%emt 0:00:19]} h6 {[%emt 0:01:14]} 10. Nc4 {[%emt 0:04:40]} Bf8 {[%emt 0:01:49]} 11. a4 {[%emt 0:01:50]} d5 {[%emt 0:06:20]} 12. exd5 {[%emt 0:00:34]} Nxd5 {[%emt 0:00:08]} 13. Re1 {[%emt 0:01:40]} Nb6 {[%emt 0:18:09]} 14. Ne3 {[%emt 0:30:31]} Nd5 {[%emt 0:20:02]} 15. Nxd5 {[%emt 0:19:55]} Qxd5 {[%emt 0:00:08]} 16. Be3 {[%emt 0:00:42]} Bg4 {[%emt 0:20:56]} 17. h3 {[%emt 0:08:22]} Bh5 {[%emt 0:00:10]} 18. Rad1 {[%emt 0:02:28]} Qd7 {[%emt 0:04:30]} 19. g4 {[%emt 0:05:54]} Bg6 {[%emt 0:00:06]} 20. Nh4 {[%emt 0:00:13]} Bh7 {[%emt 0:01:20]} 21. Be4 {[%emt 0:00:08]} Rac8 {[%emt 0:05:17]} 22. Qc2 {[%emt 0:05:27]} Qd8 {[%emt 0:02:14]} 23. Nf5 {[%emt 0:01:54]} Nd4 {[%emt 0:00:40]} 24. cxd4 {[%emt 0:04:21]} cxd4 {[%emt 0:00:03]} 25. Qb3 {[%emt 0:00:20]} dxe3 {[%emt 0:00:13]} 26. Nxe3 {[%emt 0:01:52]} Rc7 {[%emt 0:04:02]} 27. Rc1 {[%emt 0:03:05]} b6 {[%emt 0:00:58]} 28. Qb5 {[%emt 0:01:09]} Rxc1 {[%emt 0:00:39]} 29. Rxc1 {[%emt 0:00:06]} Bc5 {[%emt 0:00:12]} 30. Nd5 {[%emt 0:00:32]} Rf8 {[%emt 0:00:36]} 31. b4 {[%emt 0:00:36]} Bd4 {[%emt 0:00:26]} 32. Rc2 {[%emt 0:02:12]} f5 {[%emt 0:00:53]} 33. gxf5 {[%emt 0:01:20]} Qg5+ {[%emt 0:00:13]} 34. Kf1 {[%emt 0:00:49]} Qh4 {[%emt 0:01:26]} 35. Qd7 {[%emt 0:01:25]} 1/2-1/2